{"text_format":"1","workbook":"xlsx","n_sheets":1,"sheets":["بيانات"],"not_rendered":{"charts":0,"images":0,"macros":1,"external_links":0,"defined_names":3,"comments":0,"pivot_tables":0},"unopened":[],"bounds":{"document_bytes":16777216,"sheet_cells":100000,"rows_first":2000,"rows_last":500,"rows_between":2000,"halvings":0,"cell_chars":16384,"cell_head_chars":4096},"cells_cut":0,"cells_raw":0,"read":"whole","date_system":"1900"}

{"sheet":"بيانات","index":0,"n_rows":48,"n_cols":14,"rows_kept":48,"cut":false,"hidden":false,"merged":[[1,6,1,10]]}
[]
[null,null,null,null,null,100,"بيان درجات طلاب الصف السادس الابتدائى",null,null,null,null,500,100,"ناجح"]
[]
[]
[null,null,"م","رقم الجلوس","الاسم","المدرسة","لغة عربية","رياضيات","علوم","دراسات","انجليزى","المجموع","دين","حالة الطالب"]
[null,null,1,1,"ابراهيم محمد احمد","بورفؤاد الابتدائية",100,100,100,80,80,{"$f":"SUM(G6:K6)","v":460},80,"ناجح"]
[null,null,2,2,"ممم","السيدة عائشة",80,80,80,80,80,400,100,"ناجح"]
[null,null,3,3,"احمد محمد محمود","بورسعيد ",45,45,45,45,45,225,45,"ناجح"]
[null,null,4,4,"احمد عبد المنعم عبد العزيز على حامد","بورسعيد الابتدائية",95,78,39,49,77,338,44,"ناجح"]
[null,null,5,5,"محمد عمر محمود","بورسعيد الابتدائية",90,90,90,90,90,450,90,"ناجح"]
[null,null,6,6,"احمد محمود محمود محمود جبر","بورسعيد الابتدائية",93,74,41,51,99,358,44,"ناجح"]
[null,null,7,7,"احمد نبيل حسين السيد","بورسعيد الابتدائية",92,72,42,52,110,368,44,"ناجح"]
[null,null,8,8,"احمد هادى الغريب عبد الوهاب قطب ","بورسعيد الابتدائية",91,70,43,53,121,378,44,"ناجح"]
[null,null,9,9,"احمد هاشم ابراهيم امين","بورسعيد الابتدائية",90,68,44,54,132,388,44,"ناجح"]
[null,null,10,10,"احمد هنائي السعيد مصطفي عوض","بورسعيد الابتدائية",11,22,21,13,22,89,44,"ناجح"]
[null,null,11,11,"احمد يوسف محمود محمد عوض","بورسعيد الابتدائية",88,64,46,56,44,298,44,"ناجح"]
[null,null,12,12,"اسلام محمد محمد السيد عوض الدسوقي","بورسعيد الابتدائية",22,13,11,13,12,71,12,"راسب"]
[null,null,13,13,"اسلام محمد مصطفى حسين ابراهيم","بورسعيد الابتدائية",86,60,48,58,33,285,44,"ناجح"]
[null,null,14,14,"الحسينى على عبد اللاه عبد الجليل على","بورسعيد الابتدائية",85,58,49,59,45,296,44,"ناجح"]
[null,null,15,15,"بافلى ايهاب اديب حبيب توفيق","بورسعيد الابتدائية",84,56,50,60,56,306,44,"ناجح"]
[null,null,16,16,"بولا يوسف عيسى شفيق","بورسعيد الابتدائية",83,54,51,61,54,303,44,"ناجح"]
[null,null,17,17,"جون وحيد وليم اسكندر","بورسعيد الابتدائية",82,52,52,62,33,281,44,"ناجح"]
[null,null,18,18,"حسن حسن السيد احمد امين","بورسعيد الابتدائية",40,30,22,12,10,114,12,"ناجح"]
[null,null,19,19,"زياد عبد الرحمن عبد الغفار محمد ابراهيم","بورسعيد الابتدائية",79,46,54,65,23,267,44,"ناجح"]
[null,null,20,20,"سهيل سمير السيد السوهاجى","بورسعيد الابتدائية",78,44,55,66,44,287,44,"ناجح"]
[null,null,21,21,"عادل هانى عادل ماهر السيد العلاوى","بورسعيد الابتدائية",77,42,56,67,44,286,44,"ناجح"]
[null,null,22,22,"عبد الرحمن حسن على على شطا","بورسعيد الابتدائية",76,40,57,68,44,285,44,"ناجح"]
[null,null,23,23,"عبد الرحمن سيد عبد العزيز محمد","بورسعيد الابتدائية",22,13,11,13,12,71,12,"راسب"]
[null,null,24,24,"عبد الرحمن محمد عطا عبيد احمد","بورسعيد الابتدائية",74,36,59,70,44,283,44,"ناجح"]
[null,null,25,25,"عبد الله محمد شاهين عبد السلام","بورسعيد الابتدائية",73,34,60,71,44,282,44,"ناجح"]
[null,null,26,26,"على محمد السعيد حسن العجمى","بورسعيد الابتدائية",72,32,61,72,44,281,44,"ناجح"]
[null,null,27,27,"فادى فوزى خلة بخيت يوسف","بورسعيد الابتدائية",71,30,62,73,44,280,44,"ناجح"]
[null,null,28,28,"كريم ابراهيم السيد الشافعى بحيرى","بورسعيد الابتدائية",70,28,63,74,44,279,44,"ناجح"]
[null,null,29,29,"كريم عبد الرحمن عبد الغفار محمد ابراهيم","بورسعيد الابتدائية",69,26,64,75,44,278,44,"ناجح"]
[null,null,30,30,"كريم علاء حسن محمود حسن","بورسعيد الابتدائية",68,24,65,76,44,277,44,"ناجح"]
[null,null,31,31,"كريم محمد الحسينى محمد محمد طه","بورسعيد الابتدائية",67,22,66,77,44,276,44,"ناجح"]
[null,null,32,32,"مجدى عبد المنعم محمود يونس","بورسعيد الابتدائية",66,20,67,78,44,275,44,"ناجح"]
[null,null,33,33,"مجدى محموداسامة","الاورمان",23,56,67,34,34,214,23,"ناجح"]
[null,null,34,34,"مصطفى احمد مرسى محمد","بورفؤاد",33,66,77,66,66,308,55,"ناجح"]
[null,null,35,35,"s","dd",100,80,40,30,20,270,60,"ناجح"]
[null,null,36,36,"احمد كامل","السيدة عائشة",100,100,100,100,100,500,100,"ناجح"]
[null,null,37]
[null,null,38]
[null,null,39]
[null,null,40]
[null,null,41]
[null,null,42]
[null,null,43]